bitfinex/quotes_BTCUSD_20240729
["timestamp","ask_amount","ask_price","bid_price","bid_amount"]
[1722265833907,0.14684,68101.0,68100.0,0.33973422]
[1722265834107,0.58362039,68101.0,68100.0,0.20073422]
[1722265834318,0.87730139,68101.0,68100.0,0.20073422]
[1722265834517,1.22098239,68101.0,68100.0,0.20073422]
[1722265834717,1.22098239,68101.0,68100.0,0.20063422]
[1722265834894,1.33013807,68101.0,68100.0,0.20063422]
[1722265835449,1.22098239,68101.0,68100.0,0.20063422]
[1722265835608,1.45313793,68101.0,68100.0,0.20063422]
[1722265836500,1.84681893,68101.0,68100.0,0.20063422]
[1722265837088,1.73766339,68101.0,68100.0,0.20063422]
[1722265837293,1.85132349,68101.0,68100.0,0.20063422]
[1722265837701,1.89858924,68101.0,68100.0,0.20063422]
[1722265837854,1.84732349,68101.0,68100.0,0.20063422]
[1722265838476,1.85932349,68101.0,68100.0,0.20063422]
[1722265839240,1.91961531,68101.0,68100.0,0.20063422]
[1722265839448,1.57466856,68101.0,68100.0,0.20063422]
[1722265839682,1.47466856,68101.0,68100.0,0.20063422]
[1722265839881,1.35166856,68101.0,68100.0,0.20063422]
[1722265840058,1.30166856,68101.0,68100.0,0.20063422]
[1722265840363,1.00798063,68101.0,68100.0,0.20063422]
[1722265840566,1.30166163,68101.0,68100.0,0.20063422]
[1722265840774,1.28966163,68101.0,68100.0,0.20063422]
[1722265841112,0.26177863,68101.0,68100.0,0.27933422]
[1722265841286,0.89632746,68101.0,68100.0,0.27933422]
[1722265841487,0.60264646,68101.0,68100.0,0.27933422]
[1722265841873,0.16212546,68101.0,68100.0,0.27933422]
[1722265842069,0.00902607,68101.0,68100.0,0.27933422]
[1722265842299,0.00902607,68101.0,68100.0,0.34113422]
[1722265842300,0.03207098,68101.0,68100.0,0.34113422]
[1722265842469,0.02304491,68101.0,68100.0,0.81577464]
[1722265842651,0.00154301,68128.0,68100.0,0.66893264]
[1722265842856,0.00154301,68128.0,68101.0,0.1439]
[1722265842857,0.42926131,68125.0,68101.0,0.1439]
[1722265843138,0.42926131,68125.0,68100.0,0.23474764]
[1722265843139,0.15219954,68124.0,68107.0,0.293654]
[1722265843295,0.15219954,68124.0,68108.0,0.1021417]
[1722265843460,0.44578254,68124.0,68108.0,0.1021417]
[1722265843662,0.293586,68123.0,68108.0,0.1021417]
[1722265843911,0.2936,68120.0,68108.0,0.1021417]
[1722265844083,0.14309939,68119.0,68106.0,0.290729]
[1722265844320,0.15040562,68119.0,68106.0,0.290729]
[1722265844539,0.14309939,68119.0,68106.0,0.1439]
[1722265844683,0.00730623,68118.0,68106.0,0.1439]
[1722265844884,0.00154301,68129.0,68113.0,0.4352]
[1722265845085,0.058848,68138.0,68113.0,0.4352]
[1722265845086,0.00154301,68136.0,68124.0,0.145]
[1722265845332,0.00154301,68136.0,68129.0,0.2902]
[1722265845637,0.00154301,68136.0,68135.0,0.440301]
[1722265845842,0.30346558,68159.0,68135.0,0.440301]
[1722265845843,0.00154301,68158.0,68136.0,0.145]
[1722265846042,0.25735294,68157.0,68137.0,0.30908384]
[1722265846244,0.1069166,68156.0,68141.0,0.14]
[1722265846444,0.42926131,68144.0,68141.0,0.14]
[1722265846646,0.07154355,68149.0,68135.0,0.01449019]
[1722265846647,0.08039398,68143.0,68135.0,0.01449019]
[1722265846964,0.440365,68125.0,68124.0,0.0632]
[1722265847309,0.440365,68125.0,68122.0,0.0768]
[1722265847310,0.440379,68123.0,68122.0,0.0768]
[1722265847425,0.39736779,68123.0,68122.0,0.0768]
[1722265847625,0.14309939,68123.0,68122.0,0.0768]
[1722265847825,0.00922925,68123.0,68122.0,0.0768]
[1722265848024,0.00922925,68123.0,68122.0,0.09243902]
[1722265848280,0.00154301,68135.0,68122.0,0.09243902]
[1722265848486,0.293489,68146.0,68122.0,0.09243902]
[1722265848487,0.25151461,68134.0,68122.0,0.09243902]
[1722265848684,0.10841604,68133.0,68122.0,0.09243902]
[1722265848859,0.02457576,68132.0,68123.0,0.0092439]
[1722265849061,0.07154355,68129.0,68123.0,0.0092439]
[1722265849315,0.15205427,68128.0,68123.0,0.0092439]
[1722265849716,0.15051126,68128.0,68123.0,0.0092439]
[1722265849861,0.15051126,68128.0,68122.0,0.09243902]
[1722265849862,0.293586,68123.0,68122.0,0.0768]
[1722265850067,0.55228975,68123.0,68117.0,0.0651]
[1722265850266,0.55228975,68123.0,68114.0,0.0756]
[1722265850267,0.440431,68115.0,68114.0,0.0756]
[1722265850466,0.99459614,68115.0,68114.0,0.0756]
[1722265850869,0.99459614,68115.0,68100.0,0.20063422]
[1722265850870,0.440502,68104.0,68100.0,0.20063422]
[1722265851085,0.21838355,68101.0,68100.0,0.20063422]
[1722265851410,0.69164815,68101.0,68100.0,0.20453422]
[1722265851714,0.69903958,68101.0,68100.0,0.20453422]
[1722265852034,0.40535858,68101.0,68100.0,0.22098764]
[1722265852241,0.25851858,68101.0,68100.0,0.22098764]
[1722265852415,0.40623995,68101.0,68100.0,0.22098764]
[1722265852591,0.69992095,68101.0,68100.0,0.20053422]
[1722265852795,0.25939995,68101.0,68100.0,0.20053422]
[1722265853215,0.13934471,68101.0,68100.0,0.20053422]
[1722265853417,0.13934471,68101.0,68100.0,0.28043422]
[1722265853619,0.13934471,68101.0,68100.0,0.30847764]
[1722265853821,0.13934471,68101.0,68100.0,0.36987764]
[1722265854001,0.13195328,68101.0,68100.0,0.36987764]
[1722265854400,0.141166,68101.0,68100.0,0.36987764]
[1722265854999,0.13195328,68101.0,68100.0,0.36987764]
[1722265855447,0.13099896,68101.0,68100.0,0.51671964]
[1722265855777,0.13099896,68101.0,68100.0,0.36987764]
[1722265855979,0.13099896,68101.0,68100.0,0.51671964]
[1722265856133,0.13099896,68101.0,68100.0,1.10408964]
[1722265856134,0.02304415,68101.0,68100.0,1.10408964]
[1722265856333,0.42926131,68124.0,68110.0,0.0764]
[1722265856545,0.42926131,68124.0,68114.0,0.012]
[1722265856546,0.001,68115.0,68114.0,0.012]
[1722265856911,0.10875083,68115.0,68114.0,0.012]
[1722265857112,0.10775083,68115.0,68114.0,0.146812]
[1722265857312,0.10775083,68115.0,68112.0,0.1413]
[1722265857313,0.11697172,68115.0,68112.0,0.1413]
[1722265857542,0.11697172,68115.0,68113.0,0.17454737]
[1722265857543,0.00922089,68115.0,68113.0,0.17454737]
[1722265857759,0.00154301,68137.0,68115.0,0.146809]
[1722265858084,0.293523,68138.0,68115.0,0.146809]
[1722265858085,0.00154301,68135.0,68118.0,0.146803]
[1722265858227,0.00154301,68135.0,68113.0,0.02773337]
[1722265858228,0.32156106,68134.0,68129.0,0.07154355]
[1722265858426,0.32156106,68134.0,68128.0,0.1431]
[1722265858427,0.00154301,68135.0,68130.0,0.02146436]
[1722265858627,0.05,68160.0,68130.0,0.02146436]
[1722265858628,0.00154301,68133.0,68130.0,0.02146436]
[1722265858825,0.10684686,68132.0,68131.0,0.146776]
[1722265859064,0.14309939,68152.0,68131.0,0.33713392]
[1722265859233,0.00154301,68150.0,68139.0,0.0602]
[1722265859431,0.24937786,68149.0,68139.0,0.0602]
[1722265859658,0.10627847,68148.0,68139.0,0.0602]
[1722265859823,0.14309939,68147.0,68141.0,0.146753]
[1722265860028,0.14309939,68147.0,68139.0,0.353714]
[1722265860029,0.10782148,68146.0,68142.0,0.05149572]
[1722265860237,0.00154301,68144.0,68139.0,0.0602]
[1722265860629,0.00154301,68144.0,68141.0,0.0765]
[1722265860773,0.00154301,68153.0,68141.0,0.0765]
[1722265860984,0.2496774,68152.0,68141.0,0.0765]
[1722265861329,0.10812102,68151.0,68142.0,0.01511902]
[1722265861531,0.10657801,68150.0,68143.0,0.00293469]
[1722265861737,0.00154301,68149.0,68142.0,0.01511902]
[1722265861913,0.00154301,68149.0,68143.0,0.00293469]
[1722265861914,0.10657755,68148.0,68143.0,0.00293469]
[1722265862086,0.00154301,68147.0,68144.0,0.04482687]
[1722265862294,0.00154301,68147.0,68145.0,0.29349]
[1722265862489,0.00154301,68147.0,68145.0,0.16123519]
[1722265862490,0.00931431,68146.0,68145.0,0.16123519]
[1722265862904,0.0230269,68147.0,68146.0,0.44023]
[1722265863111,0.0230269,68147.0,68146.0,0.80783361]
[1722265863381,0.0230269,68147.0,68146.0,0.51434661]
[1722265863566,0.0230269,68147.0,68146.0,0.57684661]
[1722265863737,0.0230269,68147.0,68146.0,0.13661661]
[1722265863938,0.0230269,68147.0,68146.0,0.209243]
[1722265864141,0.0230269,68147.0,68146.0,0.0625]
[1722265864754,0.16612629,68147.0,68146.0,0.0625]
[1722265864952,0.03051846,68147.0,68146.0,0.0625]
[1722265865881,0.00749156,68147.0,68146.0,0.0625]
[1722265866044,0.00903457,68147.0,68146.0,0.0764]
[1722265866638,0.00903457,68147.0,68146.0,0.223143]
[1722265866639,0.00749156,68147.0,68146.0,0.223143]
[1722265866995,0.03051854,68147.0,68146.0,0.0764]
[1722265867220,0.03151854,68147.0,68146.0,0.0884]
[1722265867549,0.00849156,68147.0,68146.0,0.0884]
[1722265868175,0.01003457,68147.0,68146.0,0.0884]
[1722265868592,0.15313396,68147.0,68146.0,0.0884]
[1722265869000,0.69954978,68147.0,68146.0,0.012]
[1722265869220,1.28651578,68147.0,68146.0,0.012]
[1722265869419,0.77731227,68147.0,68146.0,0.012]
[1722265869616,0.11811307,68147.0,68146.0,0.012]
[1722265870023,0.11657006,68147.0,68146.0,0.1584]
[1722265870222,0.01192125,68147.0,68146.0,0.17424]
[1722265870420,0.11794789,68147.0,68146.0,0.17424]
[1722265870624,0.14097452,68147.0,68146.0,0.17424]
[1722265870830,0.7243049,68147.0,68146.0,0.012]
[1722265871075,1.4423287,68147.0,68146.0,0.012]
[1722265871273,1.57873133,68147.0,68146.0,0.012]
[1722265871891,1.5557047,68147.0,68146.0,0.012]
[1722265872339,0.33101531,68147.0,68146.0,0.0779]
[1722265872562,0.33101531,68147.0,68146.0,0.08569]
[1722265872563,0.11324644,68147.0,68146.0,0.08569]
[1722265872766,0.25788884,68147.0,68146.0,0.012]
[1722265872976,0.25788884,68147.0,68131.0,0.083]
[1722265872977,0.33795325,68147.0,68138.0,0.0649]
[1722265873209,0.00154301,68140.0,68138.0,0.0649]
[1722265873427,0.10603363,68139.0,68138.0,0.0649]
[1722265873666,0.10603363,68139.0,68132.0,0.0649]
[1722265873667,0.00154301,68138.0,68132.0,0.0649]
[1722265873899,0.11283277,68137.0,68132.0,0.0806848]
[1722265874122,0.07154355,68134.0,68132.0,0.0806848]
[1722265874342,0.10535145,68133.0,68132.0,0.0806848]
[1722265874558,0.11432983,68133.0,68132.0,0.0806848]
[1722265874763,0.11432983,68133.0,68132.0,0.0649]
[1722265874974,0.11432983,68133.0,68131.0,0.083]
[1722265875179,0.10689446,68132.0,68131.0,0.083]
[1722265875410,0.11441885,68132.0,68131.0,0.083]
[1722265876685,0.11488191,68132.0,68131.0,0.083]
[1722265876952,0.11333895,68132.0,68131.0,0.083]
[1722265877207,0.11333895,68132.0,68131.0,0.09731]
[1722265877208,0.11488196,68132.0,68131.0,0.09731]
[1722265877441,0.11333895,68132.0,68131.0,0.09731]
[1722265877695,0.11333895,68132.0,68131.0,0.244086]
[1722265877696,0.00752439,68132.0,68131.0,0.244086]
[1722265877979,0.02303166,68133.0,68131.0,0.244086]
[1722265878163,0.02303166,68133.0,68132.0,0.5000952]
[1722265878369,0.02303166,68133.0,68132.0,0.0597752]
[1722265878578,0.00154301,68147.0,68132.0,0.0597752]
[1722265878798,0.00739078,68133.0,68131.0,0.09731]
[1722265878997,0.00154301,68132.0,68131.0,0.09731]
[1722265879328,0.00154301,68140.0,68131.0,0.244085]
[1722265879537,0.00154301,68140.0,68132.0,0.06122312]
[1722265879538,0.10530042,68139.0,68132.0,0.06122312]
[1722265879681,0.00154301,68138.0,68132.0,0.06122312]
[1722265879889,0.02303071,68133.0,68132.0,0.06122312]
[1722265880089,0.00154301,68138.0,68132.0,0.06122312]
[1722265880287,0.00924042,68133.0,68132.0,0.06122312]
[1722265880491,0.00154301,68140.0,68131.0,0.09731]
[1722265880492,0.146761,68138.0,68131.0,0.083]
[1722265880691,0.10706932,68137.0,68131.0,0.083]
[1722265880919,0.10552631,68136.0,68131.0,0.083]
[1722265881067,0.00154301,68135.0,68134.0,0.146769]
[1722265881495,0.00154301,68135.0,68132.0,0.293546]
[1722265881496,0.01394368,68135.0,68132.0,0.146772]
[1722265881726,0.00154301,68135.0,68133.0,0.20055262]
[1722265881941,0.00154301,68140.0,68133.0,0.05378162]
[1722265882159,0.10622711,68139.0,68133.0,0.05378162]
[1722265882293,0.00154301,68138.0,68134.0,0.06035988]
[1722265882494,0.10622711,68137.0,68134.0,0.06035988]
[1722265882696,0.00154301,68136.0,68135.0,0.146767]
[1722265882896,0.00154301,68136.0,68134.0,0.20712788]
[1722265882897,0.10777012,68136.0,68134.0,0.20712788]
[1722265883102,0.00154301,68136.0,68135.0,0.09459436]
[1722265883330,19.0,68149.0,68140.0,0.1141]
[1722265883534,19.0,68149.0,68148.0,0.636417]
[1722265883765,18.93139366,68149.0,68148.0,0.94438519]
[1722265883912,18.93139366,68149.0,68148.0,0.44113771]
[1722265884118,18.93139366,68149.0,68148.0,0.16069019]
[1722265884315,18.93139366,68149.0,68148.0,0.60090719]
[1722265884516,18.93139366,68149.0,68148.0,0.16069019]
[1722265884763,19.03674237,68149.0,68148.0,0.1462]
[1722265886275,19.03648639,68149.0,68148.0,0.1462]
[1722265886482,19.03648639,68149.0,68148.0,0.16082]
[1722265886846,19.03648639,68149.0,68140.0,0.0627]
[1722265886847,19.25417112,68149.0,68140.0,0.0627]
[1722265887047,0.07154355,68142.0,68140.0,0.0627]
[1722265887275,0.10509273,68141.0,68140.0,0.0627]
[1722265888106,0.10509273,68141.0,68139.0,0.0757]
[1722265888267,0.10509273,68141.0,68140.0,0.01386]
[1722265888746,0.10509273,68141.0,68131.0,0.012]
[1722265888747,0.32300557,68141.0,68131.0,0.012]
[1722265888949,0.07154355,68139.0,68131.0,0.012]
[1722265889161,0.07154355,68132.0,68131.0,0.012]
[1722265889359,0.21464294,68132.0,68131.0,0.012]
[1722265889469,0.32300557,68132.0,68131.0,0.012]
[1722265889890,0.07481345,68132.0,68131.0,0.012]
[1722265890086,0.08548131,68132.0,68131.0,0.012]
[1722265890293,0.19182001,68132.0,68131.0,0.012]
[1722265890495,0.19182001,68132.0,68123.0,0.0806]
[1722265890747,0.18115215,68131.0,68124.0,0.0153578]
[1722265890989,0.11535068,68139.0,68124.0,0.0153578]
[1722265891249,0.00887102,68130.0,68127.0,0.146784]
[1722265891375,0.33577333,68138.0,68127.0,0.14971836]
[1722265891376,0.09488712,68129.0,68127.0,0.14971836]
[1722265891576,0.14309939,68138.0,68124.0,0.0153578]
[1722265891577,0.0230325,68130.0,68128.0,0.05392612]
[1722265891789,0.04380713,68146.0,68141.0,0.146752]
[1722265891994,0.0657107,68148.0,68142.0,0.0440265]
[1722265891995,0.09487326,68145.0,68142.0,0.0440265]
[1722265892270,0.09487326,68145.0,68132.0,0.1448]
[1722265892271,0.23797265,68144.0,68132.0,0.1448]
[1722265892393,0.14309939,68144.0,68132.0,0.1448]
[1722265892595,0.10310342,68143.0,68132.0,0.1448]
[1722265892849,0.10310342,68143.0,68133.0,0.03455061]
[1722265892850,0.07154355,68141.0,68133.0,0.03455061]
[1722265893053,0.23734698,68140.0,68133.0,0.03455061]
[1722265893243,0.09424759,68139.0,68133.0,0.03455061]
[1722265893707,0.0089166,68138.0,68133.0,0.03455061]
[1722265893909,0.09424759,68137.0,68133.0,0.03455061]
[1722265894033,0.09424759,68137.0,68136.0,0.146765]
[1722265894235,0.10313817,68137.0,68136.0,0.146765]
[1722265894458,0.00889058,68137.0,68136.0,0.783825]
[1722265894675,0.04380464,68166.0,68148.0,0.222639]
[1722265894872,0.04380464,68168.0,68148.0,0.9029489]
[1722265895083,0.06570696,68171.0,68148.0,0.9638489]
[1722265895084,18.92935421,68149.0,68148.0,0.9638489]
[1722265895245,18.92935421,68149.0,68148.0,1.89390429]
[1722265895246,18.91318424,68149.0,68148.0,1.89390429]
[1722265895434,18.90018625,68149.0,68148.0,1.89390429]
[1722265895634,18.90018625,68149.0,68148.0,1.89590429]
[1722265895838,17.83368625,68149.0,68148.0,1.89590429]
[1722265896041,15.62534799,68149.0,68148.0,1.92529429]
[1722265896300,10.27144635,68149.0,68148.0,2.21877229]
[1722265896518,10.27144635,68149.0,68148.0,2.24177229]
[1722265896519,6.1830171,68149.0,68148.0,2.24177229]
[1722265896798,0.53254166,68149.0,68148.0,2.27301839]
[1722265897027,0.45446298,68149.0,68148.0,2.27301839]
[1722265897229,0.42926131,68183.0,68169.0,0.80917]
[1722265897449,0.42926131,68183.0,68169.0,0.82366019]
[1722265897619,0.42926131,68183.0,68169.0,1.01675958]
[1722265897849,0.42926131,68183.0,68169.0,0.53027219]
[1722265897850,0.07154355,68182.0,68169.0,0.53027219]
[1722265898094,0.07154355,68182.0,68169.0,0.53017219]
[1722265898319,0.07154355,68182.0,68169.0,0.23678419]
[1722265898536,0.07154355,68185.0,68169.0,0.82356019]
[1722265898982,0.07154355,68185.0,68169.0,0.09019019]
[1722265899187,0.0763,68192.0,68169.0,0.53027219]
[1722265899330,0.0763,68192.0,68169.0,0.96675958]
[1722265899535,0.0763,68192.0,68169.0,1.26014758]
[1722265899740,0.07154355,68186.0,68169.0,0.23688419]
[1722265899939,0.07154355,68186.0,68169.0,0.09019019]
[1722265900137,0.07154355,68185.0,68169.0,0.82366019]
[1722265900368,0.0314,68188.0,68169.0,1.31014758]
[1722265900568,0.0314,68188.0,68169.0,1.42000164]
[1722265900921,0.0314,68188.0,68169.0,1.32000164]
[1722265901658,0.00927,68170.0,68169.0,1.33100164]
[1722265901854,0.00927,68170.0,68169.0,1.43100164]
[1722265902059,0.00927,68170.0,68169.0,1.33100164]
[1722265902481,0.00827,68170.0,68169.0,0.52563606]
[1722265903058,0.00827,68170.0,68169.0,0.08555406]
[1722265903281,0.00827,68170.0,68169.0,0.52563606]
[1722265903443,0.00827,68170.0,68169.0,0.62563606]
[1722265904463,0.00827,68170.0,68169.0,0.18555406]
[1722265904725,0.00827,68170.0,68169.0,0.00985406]
[1722265904950,0.06927,68170.0,68169.0,0.10985406]
[1722265905155,0.06927,68170.0,68161.0,0.1]
[1722265905297,0.0769813,68170.0,68161.0,0.1]
[1722265905505,0.06927,68170.0,68161.0,0.246711]
[1722265905768,0.00773298,68169.0,68161.0,0.1]
[1722265905969,0.00773298,68169.0,68160.0,0.03908742]
[1722265906123,0.06927,68170.0,68160.0,0.03908742]
[1722265906509,0.06927,68170.0,68161.0,0.14671]
[1722265906711,0.06927,68170.0,68162.0,0.1]
[1722265907052,0.02301877,68167.0,68160.0,0.03908742]
[1722265907498,0.00767162,68166.0,68160.0,0.03908742]
[1722265908122,0.00767162,68166.0,68164.0,0.146704]
[1722265908332,0.00767162,68166.0,68160.0,0.03908742]
[1722265908526,0.02301877,68167.0,68160.0,0.13908742]
[1722265909384,0.02301877,68167.0,68160.0,0.00969742]
[1722265909591,0.14309939,68166.0,68160.0,0.00969742]
[1722265909724,0.00767003,68166.0,68160.0,0.2907]
[1722265909921,0.02301877,68167.0,68160.0,0.2907]
[1722265910144,0.02301877,68167.0,68161.0,0.293421]
[1722265910348,0.02301877,68167.0,68159.0,0.01002832]
[1722265910349,0.586854,68160.0,68159.0,0.01002832]
[1722265910598,0.586854,68160.0,68145.0,0.02942]
[1722265910599,0.146716,68159.0,68145.0,0.02942]
[1722265910886,0.54322639,68160.0,68141.0,0.02942]
[1722265910887,0.14309939,68158.0,68141.0,0.02942]
[1722265911099,0.15076079,68158.0,68141.0,0.02942]
[1722265911870,0.15076079,68158.0,68139.0,0.146758]
[1722265912090,0.15076079,68158.0,68142.0,0.02942]
[1722265912848,0.15076079,68158.0,68135.0,0.02424183]
[1722265912849,0.15076079,68158.0,68148.0,0.146738]
[1722265913070,0.14309939,68157.0,68145.0,0.02942]
[1722265913550,0.00760943,68156.0,68145.0,0.02942]
[1722265913756,0.293466,68151.0,68145.0,0.02942]
[1722265913985,0.293466,68151.0,68135.0,0.02424183]
[1722265913986,0.146753,68142.0,68135.0,0.00975164]
[1722265914196,0.078,68149.0,68132.0,0.001013]
[1722265914197,0.36139894,68141.0,68132.0,0.001013]
[1722265914413,0.146768,68135.0,68132.0,0.001013]
[1722265914620,0.0631,68140.0,68132.0,0.001013]
[1722265914621,0.0816,68133.0,68132.0,0.001013]
[1722265915068,0.0816,68133.0,68116.0,0.058823]
[1722265915069,0.35934294,68133.0,68116.0,0.058823]
[1722265915293,0.23733431,68132.0,68116.0,0.058823]
[1722265915467,0.14309939,68132.0,68116.0,0.058823]
[1722265915697,0.10180044,68131.0,68116.0,0.058823]
[1722265915940,0.14309939,68130.0,68113.0,0.293627]
[1722265916159,0.14309939,68130.0,68107.0,0.2907]
[1722265916160,0.15066839,68130.0,68118.0,0.146803]
[1722265916646,0.15066839,68130.0,68120.0,0.146799]
[1722265916878,0.15066839,68130.0,68121.0,0.146796]
[1722265917124,0.1447,68133.0,68122.0,0.00293575]
[1722265917360,0.15061352,68132.0,68115.0,0.2907]
[1722265917590,0.00751413,68132.0,68119.0,0.12154355]
[1722265917806,0.00751413,68132.0,68129.0,0.146779]
[1722265918025,0.0631,68133.0,68128.0,0.14678]
[1722265918249,0.0631,68133.0,68124.0,0.2907]
[1722265918250,0.02303209,68128.0,68124.0,0.14679]
[1722265918492,0.0631,68133.0,68125.0,0.1]
[1722265918743,0.0631,68133.0,68131.0,0.146775]
[1722265918982,0.0631,68133.0,68130.0,0.146777]
[1722265919460,0.0631,68133.0,68129.0,0.293559]
[1722265919711,0.0604,68143.0,68138.0,0.146759]
[1722265919917,0.0604,68143.0,68126.0,0.05]
[1722265919918,0.30108698,68142.0,68124.0,0.2907]
[1722265920144,0.30108698,68142.0,68118.0,0.01449019]
[1722265920145,0.07154355,68135.0,68119.0,0.2936]
[1722265920379,0.293513,68140.0,68118.0,0.30809519]
[1722265920380,0.0603,68133.0,68125.0,0.10965929]
[1722265920599,0.14309939,68132.0,68125.0,0.00965929]
[1722265920828,0.14309939,68132.0,68118.0,0.393606]
[1722265920829,0.15049823,68132.0,68122.0,0.1]
[1722265921106,0.15049823,68132.0,68122.0,0.29359]
[1722265921327,0.0603,68133.0,68130.0,0.146778]
[1722265921328,0.02303204,68131.0,68130.0,0.146778]
[1722265921581,0.02303204,68131.0,68118.0,0.06001202]
[1722265921582,0.0629,68130.0,68118.0,0.01001202]
[1722265921814,0.0629,68130.0,68108.0,0.2907]
[1722265921815,0.14309939,68129.0,68108.0,0.2907]
[1722265922012,0.15060275,68129.0,68108.0,0.3007523]
[1722265922257,0.15060275,68129.0,68115.0,0.146809]
[1722265922459,0.15060275,68129.0,68115.0,0.29362]
[1722265922699,0.15060275,68129.0,68115.0,0.146809]
[1722265922827,0.15060275,68129.0,68116.0,0.1]
[1722265923206,0.15060275,68129.0,68108.0,0.0100523]
[1722265923207,0.064,68124.0,68108.0,0.0100523]
[1722265923377,0.14309939,68123.0,68108.0,0.146825]
[1722265923601,0.14309939,68123.0,68108.0,0.293649]
[1722265923602,0.15046022,68123.0,68108.0,0.293649]
[1722265923784,0.15046022,68123.0,68103.0,0.01449019]
[1722265924004,0.15046022,68123.0,68107.0,0.146826]
[1722265924201,0.15046022,68123.0,68106.0,0.293659]
[1722265924507,0.15046022,68123.0,68109.0,0.146823]
[1722265924508,0.14309939,68123.0,68109.0,0.146823]
[1722265924710,0.14309939,68123.0,68107.0,0.1]
[1722265924852,0.00728538,68122.0,68110.0,0.1]
[1722265925210,0.0662,68116.0,68103.0,0.00994717]
[1722265925495,0.0662,68116.0,68100.0,0.20053422]
[1722265925496,0.0606,68109.0,68100.0,0.20053422]
[1722265925637,0.14309939,68108.0,68100.0,0.20053422]
[1722265925832,0.29721446,68108.0,68100.0,0.20053422]
[1722265926039,0.15038846,68108.0,68100.0,0.20053422]
[1722265926638,0.00728907,68108.0,68103.0,0.146835]
[1722265926942,0.293581,68125.0,68100.0,0.21329235]
[1722265926943,0.0636,68120.0,68108.0,0.293647]
[1722265927143,0.0636,68120.0,68107.0,0.07154355]
[1722265927144,0.00720832,68119.0,68118.0,0.146804]
[1722265927542,0.0647,68127.0,68125.0,0.146788]
[1722265927807,0.00710264,68126.0,68123.0,0.293584]
[1722265928004,0.00710264,68126.0,68125.0,0.440365]
[1722265928177,0.0647,68127.0,68126.0,0.440359]
[1722265928510,0.0647,68127.0,68126.0,0.146786]
[1722265929042,0.0647,68127.0,68126.0,0.440359]
[1722265929456,0.0823,68136.0,68129.0,0.293558]
[1722265929457,0.0644,68135.0,68129.0,0.293558]
[1722265929661,0.0644,68135.0,68117.0,0.40519019]
[1722265929832,0.00690927,68134.0,68126.0,0.146786]
[1722265930037,0.00690927,68134.0,68117.0,0.45519019]
[1722265930191,0.00690927,68134.0,68128.0,0.293561]
[1722265930392,0.00690927,68134.0,68117.0,0.40519019]
[1722265930615,0.00690927,68134.0,68118.0,0.293603]
[1722265930790,0.00690927,68134.0,68117.0,0.41515941]
[1722265930791,0.00690927,68134.0,68126.0,0.293569]
[1722265930994,0.00690927,68134.0,68119.0,0.1]
[1722265931339,0.00690927,68134.0,68133.0,0.146771]
[1722265931538,0.00690927,68134.0,68133.0,0.440314]
[1722265931783,0.064,68141.0,68136.0,0.146764]
[1722265931901,0.064,68141.0,68133.0,0.147938]
[1722265931902,0.00696281,68134.0,68133.0,0.147938]
[1722265932102,0.064,68141.0,68133.0,0.441431]
[1722265932490,0.064,68141.0,68133.0,0.001117]
[1722265932491,0.001,68134.0,68133.0,0.001117]
[1722265932844,0.00798451,68134.0,68133.0,0.517931]
[1722265933063,0.00798451,68134.0,68133.0,0.101117]
[1722265933220,0.001,68134.0,68133.0,0.101117]
[1722265933424,0.0649,68134.0,68133.0,0.001117]
[1722265933633,0.0639,68134.0,68133.0,0.001117]
[1722265933839,0.07096808,68134.0,68133.0,0.001117]
[1722265934395,0.36083647,68134.0,68133.0,0.001117]
[1722265934595,0.21406747,68134.0,68133.0,0.001117]
[1722265934799,0.36083647,68134.0,68133.0,0.001117]
[1722265935000,0.23709789,68134.0,68133.0,0.001117]
[1722265935614,0.45976689,68134.0,68133.0,0.001117]
[1722265935815,0.31299789,68134.0,68133.0,0.001117]
[1722265936026,0.43673647,68134.0,68133.0,0.001117]
[1722265936273,1.11884079,68134.0,68133.0,0.001117]
[1722265936473,1.11884079,68134.0,68125.0,0.000924]
[1722265936474,0.290486,68126.0,68125.0,0.000924]
[1722265936691,1.56934805,68126.0,68125.0,0.000924]
[1722265936890,1.69930156,68126.0,68125.0,0.000924]
[1722265937043,1.72600001,68126.0,68125.0,0.000924]
[1722265937423,0.293634,68112.0,68106.0,0.0016]
[1722265937625,0.222327,68107.0,68106.0,0.0016]
[1722265937830,0.85461834,68107.0,68106.0,0.0016]
[1722265938092,1.15529246,68107.0,68106.0,0.0016]
[1722265939228,1.17833578,68107.0,68106.0,0.0016]
[1722265939392,1.17833578,68107.0,68100.0,0.20053422]
[1722265939393,0.440521,68101.0,68100.0,0.20053422]
[1722265939529,0.61997412,68101.0,68100.0,0.20053422]
[1722265939737,0.78676279,68101.0,68100.0,0.20053422]
[1722265939941,0.34624179,68101.0,68100.0,0.20053422]
[1722265940354,0.30988806,68101.0,68100.0,0.20053422]
[1722265941405,0.45672806,68101.0,68100.0,0.20053422]
[1722265941749,0.45672806,68101.0,68100.0,0.93474622]
[1722265941750,0.14206198,68101.0,68100.0,0.93474622]
[1722265941948,0.00688266,68101.0,68100.0,0.20053422]
[1722265942290,0.08324332,68107.0,68100.0,0.20053422]
[1722265942494,0.2398519,68106.0,68100.0,0.20053422]
[1722265942699,0.09675251,68105.0,68100.0,0.20053422]
[1722265942899,0.23985754,68104.0,68100.0,0.20053422]
[1722265943104,0.09675815,68103.0,68100.0,0.20053422]
[1722265943304,0.14309939,68102.0,68100.0,0.20053422]
[1722265943504,0.09675815,68101.0,68100.0,0.20053422]
[1722265943775,0.09675815,68101.0,68093.0,0.00967686]
[1722265943776,0.4616539,68101.0,68093.0,0.00967686]
[1722265943949,0.4616539,68101.0,68057.0,0.078]
[1722265943950,0.0819,68089.0,68057.0,0.078]
[1722265944156,0.502176,68077.0,68057.0,0.078]
[1722265944353,0.1653211,68077.0,68063.0,0.00997746]
[1722265944530,0.45531249,68077.0,68057.0,0.078]
[1722265944760,0.45531249,68077.0,68051.0,0.79466044]
[1722265944761,0.79909649,68077.0,68051.0,0.79466044]
[1722265944975,0.79909649,68077.0,68076.0,0.004086]
[1722265944976,0.83112587,68077.0,68076.0,0.004086]
[1722265945212,0.92934612,68077.0,68076.0,0.004086]
[1722265945342,1.22313012,68077.0,68076.0,0.004086]
[1722265946018,1.32313012,68077.0,68076.0,0.004086]
[1722265946194,1.24613012,68077.0,68076.0,0.004086]
[1722265946398,1.24765817,68077.0,68076.0,0.004086]